[Event "Live Chess"]
[Site "Chess.com"]
[Date "2024.06.01"]
[Round "-"]
[White "Delacorta"]
[Black "Bob2pen"]
[Result "0-1"]
[WhiteElo "1396"]
[BlackElo "1844"]
[TimeControl "300"]
[EndTime "9:30:37 PDT"]
[Termination "Bob2pen won by resignation"]

1. d4 {[%clk 0:04:56.7]} 1... Nf6 {[%clk 0:04:58.5]} 2. Nf3 {[%clk 0:04:56.6]}
2... c5 {[%clk 0:04:57.1]} 3. e3 {[%clk 0:04:56.5]} 3... g6 {[%clk 0:04:55.5]}
4. Bd3 {[%clk 0:04:56.4]} 4... Bg7 {[%clk 0:04:54.6]} 5. b3 {[%clk 0:04:56]}
5... O-O {[%clk 0:04:53.4]} 6. Bb2 {[%clk 0:04:55]} 6... d5 {[%clk 0:04:51.9]}
7. Nbd2 {[%clk 0:04:53.4]} 7... cxd4 {[%clk 0:04:50.8]} 8. exd4 {[%clk
0:04:52.5]} 8... Nc6 {[%clk 0:04:49.6]} 9. O-O {[%clk 0:04:50.3]} 9... a6 {[%clk
0:04:47.6]} 10. a3 {[%clk 0:04:49.3]} 10... Bg4 {[%clk 0:04:45.6]} 11. h3 {[%clk
0:04:45.9]} 11... Bxf3 {[%clk 0:04:44.2]} 12. Nxf3 {[%clk 0:04:44.8]} 12... e6
{[%clk 0:04:43.4]} 13. Ne5 {[%clk 0:04:42]} 13... Qc7 {[%clk 0:04:41.2]} 14. f4
{[%clk 0:04:39.9]} 14... Nd7 {[%clk 0:04:37.5]} 15. Rf3 {[%clk 0:04:26]} 15...
Rac8 {[%clk 0:04:34.8]} 16. Qe2 {[%clk 0:04:21]} 16... Ndxe5 {[%clk 0:04:28.7]}
17. fxe5 {[%clk 0:04:18.7]} 17... Qb6 {[%clk 0:04:26.3]} 18. Kh1 {[%clk
0:04:13.5]} 18... Nxd4 {[%clk 0:04:22.9]} 19. Bxd4 {[%clk 0:04:08.2]} 19... Qxd4
{[%clk 0:04:21.5]} 20. Raf1 {[%clk 0:04:05.8]} 20... Qxe5 {[%clk 0:04:19.2]} 21.
Qf2 {[%clk 0:03:58.6]} 21... Qc7 {[%clk 0:04:09.2]} 22. c4 {[%clk 0:03:33.2]}
22... d4 {[%clk 0:03:57.3]} 23. c5 {[%clk 0:03:29.7]} 23... Qe7 {[%clk 0:03:48]}
24. b4 {[%clk 0:03:19.5]} 24... a5 {[%clk 0:03:46.9]} 25. Bc4 {[%clk 0:03:15.1]}
25... axb4 {[%clk 0:03:43.4]} 26. axb4 {[%clk 0:03:15]} 26... b6 {[%clk
0:03:42.5]} 27. cxb6 {[%clk 0:02:50.9]} 27... Rxc4 {[%clk 0:03:40.6]} 28. b7
{[%clk 0:02:50]} 28... Rxb4 {[%clk 0:03:37.8]} 0-1

[Event "Live Chess"]
[Site "Chess.com"]
[Date "2024.06.01"]
[Round "-"]
[White "KwikPhoenix"]
[Black "Nathaniel250"]
[Result "1-0"]
[WhiteElo "2468"]
[BlackElo "1425"]
[TimeControl "300"]
[EndTime "9:30:37 PDT"]
[Termination "KwikPhoenix won by resignation"]

1. Nc3 {[%clk 0:04:58.4]} 1... d5 {[%clk 0:04:57.4]} 2. e4 {[%clk 0:04:57.2]}
2... dxe4 {[%clk 0:04:55.4]} 3. Nxe4 {[%clk 0:04:57.1]} 3... Bf5 {[%clk
0:04:53.3]} 4. Ng3 {[%clk 0:04:55.9]} 4... Qc8 {[%clk 0:04:45.9]} 5. d4 {[%clk
0:04:51.4]} 5... Nf6 {[%clk 0:04:43.9]} 6. Nxf5 {[%clk 0:04:48.1]} 6... Qxf5
{[%clk 0:04:41.4]} 7. Bd3 {[%clk 0:04:47.7]} 7... Qg4 {[%clk 0:04:35.9]} 8. Qxg4
{[%clk 0:04:41.3]} 8... Nxg4 {[%clk 0:04:35.8]} 9. Nf3 {[%clk 0:04:38.3]} 9...
Nc6 {[%clk 0:04:30.9]} 10. c3 {[%clk 0:04:37.1]} 10... e6 {[%clk 0:04:27.7]} 11.
h3 {[%clk 0:04:33.8]} 11... Nf6 {[%clk 0:04:26.1]} 12. Bb5 {[%clk 0:04:31.7]}
12... Kd7 {[%clk 0:04:20.5]} 13. Ne5+ {[%clk 0:04:29.7]} 13... Ke7 {[%clk
0:04:07.7]} 14. Nxc6+ {[%clk 0:04:25.9]} 14... bxc6 {[%clk 0:04:06.5]} 15. Bxc6
{[%clk 0:04:25.8]} 15... Rb8 {[%clk 0:04:03.7]} 16. O-O {[%clk 0:04:25]} 16...
Rb6 {[%clk 0:03:59.3]} 17. Bf3 {[%clk 0:04:23.9]} 17... Kd7 {[%clk 0:03:52.8]}
18. b3 {[%clk 0:04:21]} 18... Be7 {[%clk 0:03:39.3]} 19. Be3 {[%clk 0:04:12.5]}
19... Rbb8 {[%clk 0:03:36.9]} 20. Rfd1 {[%clk 0:04:08.8]} 20... a5 {[%clk
0:03:34.6]} 21. d5 {[%clk 0:04:02.5]} 21... exd5 {[%clk 0:03:33.8]} 22. Bxd5
{[%clk 0:04:01.9]} 22... Nxd5 {[%clk 0:03:32.9]} 23. Rxd5+ {[%clk 0:04:01.8]}
23... Ke6 {[%clk 0:03:24.7]} 24. Rxa5 {[%clk 0:03:57.9]} 24... Bf6 {[%clk
0:03:16.4]} 25. Re1 {[%clk 0:03:54.6]} 25... Bxc3 {[%clk 0:03:09.4]} 26. Bd2+
{[%clk 0:03:53.8]} 26... Kd7 {[%clk 0:03:06.8]} 27. Bxc3 {[%clk 0:03:52.4]}
27... Ra8 {[%clk 0:03:03.8]} 28. Rd1+ {[%clk 0:03:50.5]} 28... Kc6 {[%clk
0:03:01.1]} 29. a4 {[%clk 0:03:48]} 29... Rxa5 {[%clk 0:02:56.4]} 30. Bxa5
{[%clk 0:03:47.9]} 30... Ra8 {[%clk 0:02:54.6]} 31. b4 {[%clk 0:03:46.4]} 31...
Kb7 {[%clk 0:02:50.2]} 32. Rd7 {[%clk 0:03:42.9]} 32... Rc8 {[%clk 0:02:45.4]}
33. Rxf7 {[%clk 0:03:41.4]} 33... Re8 {[%clk 0:02:41.4]} 1-0

[Event "Live Chess"]
[Site "Chess.com"]
[Date "2024.06.01"]
[Round "-"]
[White "NottheBishopSacrifice"]
[Black "alicechristina"]
[Result "1-0"]
[WhiteElo "2118"]
[BlackElo "1624"]
[TimeControl "300"]
[EndTime "9:30:39 PDT"]
[Termination "NottheBishopSacrifice won by resignation"]

1. Nf3 {[%clk 0:04:52.8]} 1... d5 {[%clk 0:04:58.5]} 2. g3 {[%clk 0:04:52.7]}
2... e6 {[%clk 0:04:53.2]} 3. Bg2 {[%clk 0:04:52.6]} 3... Nf6 {[%clk 0:04:52.5]}
4. O-O {[%clk 0:04:50.6]} 4... Be7 {[%clk 0:04:51.7]} 5. d4 {[%clk 0:04:50.3]}
5... O-O {[%clk 0:04:51]} 6. c4 {[%clk 0:04:50.2]} 6... c6 {[%clk 0:04:49.8]} 7.
Nc3 {[%clk 0:04:50.1]} 7... Nbd7 {[%clk 0:04:48.6]} 8. b3 {[%clk 0:04:49.7]}
8... a6 {[%clk 0:04:47]} 9. Bb2 {[%clk 0:04:49.3]} 9... b5 {[%clk 0:04:45.3]}
10. c5 {[%clk 0:04:49]} 10... b4 {[%clk 0:04:43]} 11. Na4 {[%clk 0:04:48.2]}
11... a5 {[%clk 0:04:40.5]} 12. a3 {[%clk 0:04:47.8]} 12... Ba6 {[%clk
0:04:38.5]} 13. axb4 {[%clk 0:04:46.9]} 13... axb4 {[%clk 0:04:37.4]} 14. Re1
{[%clk 0:04:45.7]} 14... Ne8 {[%clk 0:04:19]} 15. e4 {[%clk 0:04:43]} 15... e5
{[%clk 0:04:16.1]} 16. exd5 {[%clk 0:04:41.3]} 16... cxd5 {[%clk 0:04:12.2]} 17.
Nxe5 {[%clk 0:04:39.6]} 17... Nxe5 {[%clk 0:04:11]} 18. Rxe5 {[%clk 0:04:39.5]}
18... Bf6 {[%clk 0:04:02.4]} 19. Rxd5 {[%clk 0:04:38.3]} 1-0

[Event "Live Chess"]
[Site "Chess.com"]
[Date "2024.06.01"]
[Round "-"]
[White "ACM42"]
[Black "StoreySniper"]
[Result "0-1"]
[WhiteElo "2207"]
[BlackElo "2536"]
[TimeControl "300"]
[EndTime "9:30:46 PDT"]
[Termination "StoreySniper won by resignation"]

1. e4 {[%clk 0:04:47.9]} 1... g6 {[%clk 0:04:58.8]} 2. d4 {[%clk 0:04:37.9]}
2... Bg7 {[%clk 0:04:51]} 3. f4 {[%clk 0:04:30.5]} 3... d5 {[%clk 0:04:49.1]} 4.
e5 {[%clk 0:04:28.8]} 4... c5 {[%clk 0:04:47.4]} 5. c3 {[%clk 0:04:27.6]} 5...
cxd4 {[%clk 0:04:46.3]} 6. cxd4 {[%clk 0:04:26.6]} 6... Nc6 {[%clk 0:04:45.9]}
7. Nc3 {[%clk 0:04:25.9]} 7... Nh6 {[%clk 0:04:43.7]} 8. Nf3 {[%clk 0:04:24.5]}
8... Bg4 {[%clk 0:04:42.9]} 9. Be3 {[%clk 0:04:22.3]} 9... Nf5 {[%clk 0:04:41]}
10. Bf2 {[%clk 0:04:21.6]} 10... e6 {[%clk 0:04:39.2]} 11. Bb5 {[%clk
0:04:19.3]} 11... Rc8 {[%clk 0:04:36.8]} 12. Bxc6+ {[%clk 0:04:16.1]} 12... Rxc6
{[%clk 0:04:35.4]} 13. h3 {[%clk 0:04:12.3]} 13... Bxf3 {[%clk 0:04:34]} 14.
Qxf3 {[%clk 0:04:11.5]} 14... Qb6 {[%clk 0:04:27.8]} 15. Qe2 {[%clk 0:03:46]}
15... O-O {[%clk 0:04:06.8]} 16. O-O {[%clk 0:03:33.7]} 16... Rfc8 {[%clk
0:04:03.6]} 17. Rfd1 {[%clk 0:03:22.3]} 17... Bh6 {[%clk 0:03:47.6]} 18. g4
{[%clk 0:03:14]} 18... Ne7 {[%clk 0:03:43.1]} 19. Be3 {[%clk 0:03:13.1]} 19...
Rc4 {[%clk 0:03:38.7]} 20. Rac1 {[%clk 0:02:54]} 20... Qa6 {[%clk 0:03:32.3]}
21. Qd2 {[%clk 0:02:44.3]} 21... Kh8 {[%clk 0:03:19]} 22. b3 {[%clk 0:02:42.7]}
22... R4c7 {[%clk 0:03:14.8]} 23. a4 {[%clk 0:02:21]} 23... Qa5 {[%clk
0:03:06.9]} 24. Nb5 {[%clk 0:02:14]} 24... Rxc1 {[%clk 0:02:56]} 25. Rxc1 {[%clk
0:02:05.2]} 25... Qxd2 {[%clk 0:02:52.5]} 26. Bxd2 {[%clk 0:01:55.2]} 26...
Rxc1+ {[%clk 0:02:50.8]} 27. Bxc1 {[%clk 0:01:52.2]} 27... Nc6 {[%clk
0:02:49.3]} 28. Nd6 {[%clk 0:01:25.5]} 28... Nxd4 {[%clk 0:02:45.4]} 29. Nxf7+
{[%clk 0:01:23.6]} 29... Kg7 {[%clk 0:02:44]} 30. Nxh6 {[%clk 0:01:01.8]} 30...
Ne2+ {[%clk 0:02:41.1]} 31. Kf2 {[%clk 0:01:00.6]} 31... Nxc1 {[%clk 0:02:40.3]}
32. g5 {[%clk 0:00:46.4]} 32... Nxb3 {[%clk 0:02:39.1]} 33. Ng4 {[%clk 0:00:43]}
33... Nc5 {[%clk 0:02:38]} 34. a5 {[%clk 0:00:41.4]} 34... a6 {[%clk 0:02:29.9]}
35. Ke3 {[%clk 0:00:39.7]} 35... Nb3 {[%clk 0:02:28.9]} 36. Nf6 {[%clk
0:00:35.3]} 36... Nxa5 {[%clk 0:02:27.4]} 37. h4 {[%clk 0:00:34.2]} 37... Nc4+
{[%clk 0:02:23.6]} 38. Kd4 {[%clk 0:00:32.8]} 38... a5 {[%clk 0:02:23]} 39. h5
{[%clk 0:00:21.6]} 39... gxh5 {[%clk 0:02:20.8]} 40. Nxh5+ {[%clk 0:00:20.3]}
40... Kf7 {[%clk 0:02:20.1]} 41. Nf6 {[%clk 0:00:18.4]} 41... a4 {[%clk
0:02:19.5]} 42. Kc3 {[%clk 0:00:15]} 42... a3 {[%clk 0:02:15.2]} 43. Kb3 {[%clk
0:00:14.3]} 43... Kg6 {[%clk 0:02:09.6]} 44. Ne8 {[%clk 0:00:11.7]} 44... Kf5
{[%clk 0:02:03.2]} 45. Nd6+ {[%clk 0:00:11]} 45... Kxf4 {[%clk 0:02:02.1]} 46.
Nxb7 {[%clk 0:00:08.2]} 46... Kxg5 {[%clk 0:02:00.8]} 47. Nc5 {[%clk 0:00:05]}
47... Kf5 {[%clk 0:02:00]} 48. Nd3 {[%clk 0:00:03.7]} 48... h5 {[%clk
0:01:58.6]} 0-1

[Event "Live Chess"]
[Site "Chess.com"]
[Date "2024.06.01"]
[Round "-"]
[White "halfberg"]
[Black "LL220284LL"]
[Result "0-1"]
[WhiteElo "1903"]
[BlackElo "2579"]
[TimeControl "300"]
[EndTime "9:30:54 PDT"]
[Termination "LL220284LL won by resignation"]

1. e4 {[%clk 0:04:55.8]} 1... c6 {[%clk 0:04:59.9]} 2. d4 {[%clk 0:04:53.8]}
2... h6 {[%clk 0:04:58.4]} 3. Nf3 {[%clk 0:04:45.6]} 3... d6 {[%clk 0:04:56.6]}
4. c4 {[%clk 0:04:37.1]} 4... g5 {[%clk 0:04:55]} 5. Nc3 {[%clk 0:04:35.1]} 5...
Bg7 {[%clk 0:04:48.6]} 6. h3 {[%clk 0:04:33.5]} 6... Nf6 {[%clk 0:04:45.8]} 7.
Bd3 {[%clk 0:04:31.8]} 7... c5 {[%clk 0:04:38.5]} 8. Be3 {[%clk 0:04:26.9]} 8...
cxd4 {[%clk 0:04:33.9]} 9. Nxd4 {[%clk 0:04:23.6]} 9... O-O {[%clk 0:04:31.5]}
10. O-O {[%clk 0:04:21.2]} 10... Nc6 {[%clk 0:04:29.7]} 11. Rc1 {[%clk
0:04:05.4]} 11... Bd7 {[%clk 0:04:26]} 12. a3 {[%clk 0:03:52.9]} 12... Rc8
{[%clk 0:04:23.4]} 13. Bb1 {[%clk 0:03:50.7]} 13... Ne5 {[%clk 0:04:20.9]} 14.
b3 {[%clk 0:03:43.1]} 14... a6 {[%clk 0:04:18.7]} 15. f4 {[%clk 0:03:28]} 15...
gxf4 {[%clk 0:04:12.5]} 16. Bxf4 {[%clk 0:03:26.5]} 16... b5 {[%clk 0:04:07.4]}
17. cxb5 {[%clk 0:03:13.7]} 17... axb5 {[%clk 0:04:05.5]} 18. Kh1 {[%clk
0:02:53.3]} 18... Qa5 {[%clk 0:03:57.9]} 19. Qd2 {[%clk 0:02:45.3]} 19... Qxa3
{[%clk 0:03:29.8]} 20. Bxh6 {[%clk 0:02:36.1]} 20... Bxh6 {[%clk 0:03:26.1]} 21.
Qxh6 {[%clk 0:02:34.6]} 21... Qb4 {[%clk 0:03:17]} 22. Nf5 {[%clk 0:02:25]}
22... Bxf5 {[%clk 0:03:13.1]} 23. Rxf5 {[%clk 0:02:24]} 23... Rxc3 {[%clk
0:03:08.6]} 24. Rg5+ {[%clk 0:01:59.2]} 24... Ng6 {[%clk 0:03:06.6]} 25. Rxg6+
{[%clk 0:01:58.5]} 25... fxg6 {[%clk 0:03:04.9]} 26. Qxg6+ {[%clk 0:01:57.7]}
26... Kh8 {[%clk 0:03:03.9]} 27. Qh6+ {[%clk 0:01:47.4]} 27... Nh7 {[%clk
0:03:02.9]} 28. Rxc3 {[%clk 0:01:36.8]} 28... Qxc3 {[%clk 0:03:02.8]} 29. e5
{[%clk 0:01:34.8]} 29... Qe1+ {[%clk 0:02:58.1]} 30. Kh2 {[%clk 0:01:34]} 30...
Qxe5+ {[%clk 0:02:57.5]} 0-1

[Event "Live Chess"]
[Site "Chess.com"]
[Date "2024.06.01"]
[Round "-"]
[White "Dhaydon19"]
[Black "Trendle"]
[Result "0-1"]
[WhiteElo "2699"]
[BlackElo "2621"]
[TimeControl "300"]
[EndTime "9:30:55 PDT"]
[Termination "Trendle won by resignation"]

1. d4 {[%clk 0:04:58.2]} 1... f5 {[%clk 0:04:56.9]} 2. Nf3 {[%clk 0:04:57.8]}
2... Nf6 {[%clk 0:04:56.1]} 3. c4 {[%clk 0:04:57.1]} 3... g6 {[%clk 0:04:55.6]}
4. Nc3 {[%clk 0:04:56.4]} 4... d6 {[%clk 0:04:52.9]} 5. g3 {[%clk 0:04:56.1]}
5... Bg7 {[%clk 0:04:52]} 6. Bg2 {[%clk 0:04:53.7]} 6... O-O {[%clk 0:04:51.7]}
7. O-O {[%clk 0:04:53.3]} 7... Nc6 {[%clk 0:04:51.1]} 8. d5 {[%clk 0:04:52.4]}
8... Na5 {[%clk 0:04:49.6]} 9. Nd2 {[%clk 0:04:48.9]} 9... c5 {[%clk 0:04:48.5]}
10. dxc6 {[%clk 0:04:45.2]} 10... Nxc6 {[%clk 0:04:45.8]} 11. Nf3 {[%clk
0:04:43.3]} 11... Kh8 {[%clk 0:04:43.3]} 12. Nd5 {[%clk 0:04:41.9]} 12... Nxd5
{[%clk 0:04:40.9]} 13. cxd5 {[%clk 0:04:39.2]} 13... Ne5 {[%clk 0:04:35.7]} 14.
Nd4 {[%clk 0:04:38.7]} 14... Qb6 {[%clk 0:04:33.3]} 15. Ne6 {[%clk 0:04:34.3]}
15... Bxe6 {[%clk 0:04:31.4]} 16. dxe6 {[%clk 0:04:33.9]} 16... Nc4 {[%clk
0:04:19.8]} 17. Bg5 {[%clk 0:04:27.4]} 17... Rfe8 {[%clk 0:04:14.7]} 18. Rb1
{[%clk 0:04:22.7]} 18... Rac8 {[%clk 0:04:12.3]} 19. b3 {[%clk 0:04:20.7]} 19...
Na3 {[%clk 0:03:57]} 20. Rc1 {[%clk 0:04:19.8]} 20... Rxc1 {[%clk 0:03:53.3]}
21. Qxc1 {[%clk 0:04:15.5]} 21... Nb5 {[%clk 0:03:53.2]} 22. Bxe7 {[%clk
0:04:00.4]} 22... Nc3 {[%clk 0:03:40.5]} 23. Bf3 {[%clk 0:03:51.3]} 23... Rxe7
{[%clk 0:03:37.2]} 24. Qg5 {[%clk 0:03:50.4]} 24... Rxe6 {[%clk 0:03:33.4]} 25.
Rc1 {[%clk 0:03:49.2]} 25... h6 {[%clk 0:03:25.3]} 26. Qf4 {[%clk 0:03:43]}
26... Nxe2+ {[%clk 0:03:21.1]} 27. Bxe2 {[%clk 0:03:37.5]} 27... Rxe2 {[%clk
0:03:21]} 28. Kf1 {[%clk 0:03:36.3]} 28... Re8 {[%clk 0:03:16.5]} 29. h4 {[%clk
0:03:34.8]} 29... Qb5+ {[%clk 0:03:08.6]} 30. Kg1 {[%clk 0:03:33.3]} 30... Qe5
{[%clk 0:03:07.1]} 31. Qf3 {[%clk 0:03:29.1]} 31... Qe4 {[%clk 0:03:04.3]} 32.
Qd1 {[%clk 0:03:28]} 32... f4 {[%clk 0:03:01.1]} 0-1

[Event "Live Chess"]
[Site "Chess.com"]
[Date "2024.06.01"]
[Round "-"]
[White "degringolade64"]
[Black "TC2304"]
[Result "0-1"]
[WhiteElo "2047"]
[BlackElo "2337"]
[TimeControl "300"]
[EndTime "9:31:03 PDT"]
[Termination "TC2304 won on time"]

1. e4 {[%clk 0:04:56.3]} 1... Nc6 {[%clk 0:04:59.6]} 2. Nf3 {[%clk 0:04:54]}
2... d6 {[%clk 0:04:58.9]} 3. d4 {[%clk 0:04:50.5]} 3... Nf6 {[%clk 0:04:58.3]}
4. Nc3 {[%clk 0:04:48.2]} 4... Bg4 {[%clk 0:04:58]} 5. Bb5 {[%clk 0:04:42.4]}
5... a6 {[%clk 0:04:48.6]} 6. Bxc6+ {[%clk 0:04:39.4]} 6... bxc6 {[%clk
0:04:48.5]} 7. O-O {[%clk 0:04:24.7]} 7... e6 {[%clk 0:04:47.9]} 8. h3 {[%clk
0:04:09.8]} 8... Bh5 {[%clk 0:04:46.8]} 9. b3 {[%clk 0:03:52.4]} 9... d5 {[%clk
0:04:40.3]} 10. e5 {[%clk 0:03:41.1]} 10... Ne4 {[%clk 0:04:38.1]} 11. Qd3
{[%clk 0:03:40.3]} 11... Nxc3 {[%clk 0:04:25.6]} 12. Qxc3 {[%clk 0:03:40.2]}
12... Qd7 {[%clk 0:04:11.5]} 13. a4 {[%clk 0:02:33.1]} 13... Bxf3 {[%clk
0:04:09]} 14. Qxf3 {[%clk 0:02:31.1]} 14... c5 {[%clk 0:04:08.4]} 15. c4 {[%clk
0:02:22]} 15... cxd4 {[%clk 0:04:05]} 16. Rd1 {[%clk 0:02:16.7]} 16... Bc5
{[%clk 0:04:02.2]} 17. Ba3 {[%clk 0:02:08.9]} 17... Bxa3 {[%clk 0:03:57.4]} 18.
Rxa3 {[%clk 0:02:08.8]} 18... c5 {[%clk 0:03:56.9]} 19. b4 {[%clk 0:01:54]}
19... cxb4 {[%clk 0:03:53]} 20. Rad3 {[%clk 0:01:53.4]} 20... O-O {[%clk
0:03:43.8]} 21. Rxd4 {[%clk 0:01:50.9]} 21... Qxa4 {[%clk 0:03:39.1]} 22. cxd5
{[%clk 0:01:46.1]} 22... exd5 {[%clk 0:03:39]} 23. Rg4 {[%clk 0:01:37.6]} 23...
Rad8 {[%clk 0:03:16.2]} 24. Qf6 {[%clk 0:01:30.9]} 24... g6 {[%clk 0:03:09.3]}
25. e6 {[%clk 0:01:30]} 25... Rd6 {[%clk 0:03:00.2]} 26. exf7+ {[%clk 0:01:28]}
26... Rxf7 {[%clk 0:02:58.1]} 27. Qxd6 {[%clk 0:01:27]} 27... Qxd1+ {[%clk
0:02:57.4]} 28. Kh2 {[%clk 0:01:25.7]} 28... Qc1 {[%clk 0:02:14.4]} 29. Qxd5
{[%clk 0:01:19.4]} 29... Qc7+ {[%clk 0:02:04.9]} 30. g3 {[%clk 0:01:14.6]} 30...
Qd7 {[%clk 0:01:51.9]} 31. Qb3 {[%clk 0:01:06.5]} 31... Qd2 {[%clk 0:01:48.5]}
32. Rf4 {[%clk 0:01:04.3]} 32... Qd7 {[%clk 0:01:42.2]} 33. Kg2 {[%clk 0:01:01]}
33... Qb7+ {[%clk 0:01:39.5]} 34. Kg1 {[%clk 0:00:59.2]} 34... a5 {[%clk
0:01:39]} 35. Qe6 {[%clk 0:00:47.6]} 35... Qd7 {[%clk 0:01:28.5]} 36. Qc4 {[%clk
0:00:33.7]} 36... Qc7 {[%clk 0:01:24.1]} 37. Qd5 {[%clk 0:00:29.1]} 37... Qd7
{[%clk 0:01:21.5]} 38. Qc4 {[%clk 0:00:24.4]} 38... Qe7 {[%clk 0:01:13.1]} 39.
h4 {[%clk 0:00:19.7]} 39... a4 {[%clk 0:01:02.9]} 40. Rxf7 {[%clk 0:00:16.5]}
40... Qxf7 {[%clk 0:01:00.8]} 41. Qxb4 {[%clk 0:00:16.3]} 41... Qb3 {[%clk
0:01:00.4]} 42. Qe4 {[%clk 0:00:12.4]} 42... Kf7 {[%clk 0:00:55]} 43. Qd4 {[%clk
0:00:09.4]} 43... Ke6 {[%clk 0:00:53.3]} 44. Qe4+ {[%clk 0:00:08.4]} 44... Kd6
{[%clk 0:00:52.4]} 45. Qd4+ {[%clk 0:00:07.7]} 45... Kc6 {[%clk 0:00:51.9]} 46.
Qf6+ {[%clk 0:00:06.7]} 46... Kb5 {[%clk 0:00:51.2]} 47. Qe5+ {[%clk 0:00:04.7]}
47... Kb4 {[%clk 0:00:50.3]} 48. Qd6+ {[%clk 0:00:04.3]} 48... Kc3 {[%clk
0:00:49.5]} 49. Qc7+ {[%clk 0:00:03.3]} 49... Kb2 {[%clk 0:00:48.8]} 50. Qxh7
{[%clk 0:00:03]} 50... a3 {[%clk 0:00:42.1]} 51. Qg7+ {[%clk 0:00:02.4]} 51...
Qc3 {[%clk 0:00:38.8]} 52. Qb7+ {[%clk 0:00:01.1]} 52... Kc1 {[%clk 0:00:35.7]}
0-1

[Event "Live Chess"]
[Site "Chess.com"]
[Date "2024.06.01"]
[Round "-"]
[White "DoggyDalmatian"]
[Black "MagnersCarlsberg2870"]
[Result "1-0"]
[WhiteElo "1613"]
[BlackElo "1881"]
[TimeControl "300"]
[EndTime "9:31:03 PDT"]
[Termination "DoggyDalmatian won by resignation"]

1. e4 {[%clk 0:04:53.4]} 1... e5 {[%clk 0:04:57.5]} 2. Nf3 {[%clk 0:04:43.4]}
2... Nc6 {[%clk 0:04:56.3]} 3. Bc4 {[%clk 0:04:42.8]} 3... Nd4 {[%clk
0:04:54.9]} 4. Nxd4 {[%clk 0:04:41.4]} 4... exd4 {[%clk 0:04:53.7]} 5. d3 {[%clk
0:04:41.3]} 5... Nf6 {[%clk 0:04:49.6]} 6. O-O {[%clk 0:04:40.3]} 6... d6 {[%clk
0:04:47.2]} 7. h3 {[%clk 0:04:34.6]} 7... h5 {[%clk 0:04:46]} 8. Nd2 {[%clk
0:04:33.6]} 8... c6 {[%clk 0:04:42.9]} 9. f3 {[%clk 0:04:31.7]} 9... b5 {[%clk
0:04:39.6]} 10. Bb3 {[%clk 0:04:30.6]} 10... Qc7 {[%clk 0:04:32.6]} 11. f4
{[%clk 0:04:29.3]} 11... a5 {[%clk 0:04:28.2]} 12. a4 {[%clk 0:04:27.2]} 12...
Be6 {[%clk 0:04:22.9]} 13. Bxe6 {[%clk 0:04:23.7]} 13... fxe6 {[%clk 0:04:21.7]}
14. Nf3 {[%clk 0:04:22.5]} 14... b4 {[%clk 0:04:16.4]} 15. Nxd4 {[%clk
0:04:20.1]} 15... e5 {[%clk 0:04:12]} 16. fxe5 {[%clk 0:04:17.1]} 16... dxe5
{[%clk 0:04:11.1]} 17. Nf5 {[%clk 0:04:15]} 17... Bc5+ {[%clk 0:04:08.1]} 18.
Be3 {[%clk 0:04:12.9]} 18... Qb6 {[%clk 0:04:02.9]} 19. Qe2 {[%clk 0:04:05.7]}
19... O-O-O {[%clk 0:03:58.3]} 20. Bxc5 {[%clk 0:04:02.4]} 20... Qxc5+ {[%clk
0:03:57.2]} 21. Qf2 {[%clk 0:04:02]} 21... Qxf2+ {[%clk 0:03:55.4]} 22. Rxf2
{[%clk 0:04:01.9]} 22... c5 {[%clk 0:03:40.5]} 23. Nxg7 {[%clk 0:03:58.4]} 23...
Rh6 {[%clk 0:03:31.6]} 24. Ne6 {[%clk 0:03:55.7]} 24... Rg8 {[%clk 0:03:25.5]}
25. Nxc5 {[%clk 0:03:51.7]} 25... Rhg6 {[%clk 0:03:23.9]} 26. Kh2 {[%clk
0:03:48.1]} 26... h4 {[%clk 0:03:22.6]} 27. Raf1 {[%clk 0:03:44.6]} 27... Nh5
{[%clk 0:03:17.4]} 28. Rf8+ {[%clk 0:03:43.2]} 28... Rxf8 {[%clk 0:03:10.9]} 29.
Rxf8+ {[%clk 0:03:43.1]} 29... Kc7 {[%clk 0:03:08.2]} 30. Rf2 {[%clk 0:03:36.6]}
30... Nf4 {[%clk 0:02:55.5]} 31. Nb3 {[%clk 0:03:33.2]} 31... Rg3 {[%clk
0:02:47.3]} 32. Nxa5 {[%clk 0:03:28.4]} 32... Re3 {[%clk 0:02:45.3]} 33. Nc4
{[%clk 0:03:24.7]} 33... Re1 {[%clk 0:02:41.9]} 34. Nxe5 {[%clk 0:03:21.5]}
34... Nh5 {[%clk 0:02:40.7]} 35. Nf3 {[%clk 0:03:12.7]} 35... Ng3 {[%clk
0:02:26.2]} 36. Nxe1 {[%clk 0:03:10.4]} 1-0